bitfinex-derivatives/quotes_ETHF0:USTF0_20250125
["timestamp","ask_amount","ask_price","bid_price","bid_amount"]
[1737777841293,0.4824,3317.2,3317.1,3.2078]
[1737777842194,5.51841742,3317.3,3317.1,3.6902]
[1737777842593,4.48331742,3317.3,3317.1,3.6902]
[1737777843193,4.48331742,3317.3,3317.1,3.2078]
[1737777843398,4.96570742,3317.3,3317.1,3.2078]
[1737777845900,4.48331742,3317.3,3317.1,3.2078]
[1737777846701,4.48331742,3317.3,3317.1,3.69021]
[1737777848403,4.48331742,3317.3,3317.2,3.2078]
[1737777853209,2.30535144,3318.0,3317.2,3.2078]
[1737777853506,2.83195144,3318.0,3317.7,0.48232]
[1737777853806,3.31423144,3318.0,3317.8,0.98]
[1737777854011,3.86611164,3317.9,3317.8,0.98]
[1737777857808,3.86611164,3317.9,3317.8,1.46231]
[1737777857996,3.86611164,3317.9,3317.8,0.98]
[1737777858202,3.86002405,3318.0,3317.8,0.98]
[1737777858505,3.86002405,3318.0,3317.9,0.4823]
[1737777858810,3.86002405,3318.0,3317.8,0.98]
[1737777859107,3.86002405,3318.0,3317.8,1.46231]
[1737777859307,3.86002405,3318.0,3317.8,0.4894]
[1737777859507,0.4823,3317.9,3317.4,0.48236]
[1737777859708,0.48232,3317.8,3317.4,0.48237]
[1737777859908,4.86484172,3317.8,3317.4,0.48237]
[1737777860109,0.5226,3317.7,3317.4,0.48237]
[1737777860904,1.00493,3317.7,3317.3,1.97648]
[1737777861206,0.5226,3317.7,3317.3,1.97648]
[1737777861709,0.5226,3317.7,3317.4,0.48237]
[1737777862113,0.5226,3317.7,3317.3,1.4941]
[1737777862412,1.00493,3317.7,3317.3,1.97648]
[1737777863505,0.5226,3317.7,3317.3,1.4941]
[1737777863705,3.86062172,3317.8,3317.5,0.48235]
[1737777864212,4.27355144,3318.0,3317.6,0.48233]
[1737777864412,0.48231,3317.9,3317.5,0.48235]
[1737777864815,4.37603582,3317.9,3317.5,0.48235]
[1737777865718,3.89372582,3317.9,3317.3,1.4941]
[1737777865919,0.48232,3317.8,3317.4,0.48236]
[1737777866513,0.48232,3317.8,3317.5,0.48235]
[1737777866720,4.37602582,3317.9,3317.6,0.48234]
[1737777867215,4.37602582,3317.9,3317.3,1.4941]
[1737777867416,4.37602582,3317.9,3317.5,0.48235]
[1737777868616,4.37602582,3317.9,3317.6,0.48234]
[1737777870326,4.37602582,3317.9,3317.4,3.2078]
[1737777870524,3.89372582,3317.9,3317.4,3.2078]
[1737777870729,0.48234,3317.6,3317.4,3.2078]
[1737777870930,0.48236,3317.5,3317.4,3.2078]
[1737777871226,5.47795793,3317.5,3317.4,3.2078]
[1737777872024,0.9897,3317.5,3317.4,3.2078]
[1737777872823,1.47206,3317.5,3317.4,3.2078]
[1737777873022,5.38282059,3317.5,3317.4,3.2078]
[1737777873935,5.38282059,3317.5,3317.1,0.48241]
[1737777875627,4.90046059,3317.5,3317.0,3.2078]
[1737777875832,4.90046059,3317.5,3317.2,0.48239]
[1737777876131,3.91076059,3317.5,3317.3,0.9829]
[1737777876333,2.30535144,3317.7,3317.4,0.48237]
[1737777876631,0.48232,3317.8,3317.4,0.48237]
[1737777876632,0.48232,3317.8,3317.4,1.00537]
[1737777880135,0.48232,3317.8,3317.4,0.523]
[1737777880939,0.4902,3317.9,3317.6,0.48234]
[1737777881234,3.2078,3318.0,3317.4,0.523]
[1737777881435,3.2078,3318.0,3317.7,0.48231]
[1737777881738,3.2078,3318.0,3317.8,1.52481]
[1737777881937,3.2078,3318.0,3317.9,0.5197]
[1737777882439,3.69008,3318.0,3317.9,0.5197]
[1737777882639,3.2078,3318.0,3317.9,0.5197]
[1737777882834,5.51315144,3318.0,3317.2,3.2078]
[1737777883038,0.48232,3317.8,3317.3,1.5104]
[1737777883233,0.9998,3317.9,3317.4,0.48237]
[1737777883539,3.96570342,3317.8,3317.4,0.48237]
[1737777884137,3.96570342,3317.8,3317.3,1.5104]
[1737777884345,0.48234,3317.6,3317.3,1.5104]
[1737777884635,0.48234,3317.7,3317.3,1.5104]
[1737777884834,0.48235,3317.6,3317.3,1.5104]
[1737777885337,0.48236,3317.5,3317.3,1.5104]
[1737777888746,0.48236,3317.5,3317.3,1.99278]
[1737777890745,0.48234,3317.6,3317.3,1.99278]
[1737777891848,0.48234,3317.6,3317.4,0.48236]
[1737777892447,2.30535144,3318.0,3317.3,1.5104]
[1737777892749,1.5314,3317.9,3317.5,0.48235]
[1737777892951,0.48233,3317.7,3317.5,0.48235]
[1737777893750,4.36626855,3317.8,3317.5,0.48235]
[1737777893940,3.88394855,3317.8,3317.7,0.48233]
[1737777895146,0.48227,3318.1,3317.8,0.4823]
[1737777895345,0.48227,3318.1,3317.9,0.498]
[1737777895545,0.96276,3318.2,3317.9,0.498]
[1737777896243,0.96276,3318.2,3317.7,0.48232]
[1737777896244,2.30535144,3318.0,3317.7,0.48232]
[1737777896445,0.5064,3317.9,3317.6,3.69014]
[1737777896645,0.5064,3317.9,3317.6,3.2078]
[1737777896646,2.30535144,3317.7,3317.6,3.2078]
[1737777897139,2.81845144,3317.7,3317.6,3.2078]
[1737777897656,0.5131,3317.7,3317.6,3.69014]
[1737777899358,0.5064,3317.9,3317.6,3.2078]
[1737777899548,2.30535144,3318.0,3317.6,3.2078]
[1737777899744,2.30535144,3318.0,3317.9,0.4823]
[1737777899951,3.79405144,3318.3,3318.0,0.48228]
[1737777900147,3.79405144,3318.3,3318.2,0.48226]
[1737777900350,0.5122,3318.3,3318.2,0.48226]
[1737777903458,0.5122,3318.3,3318.1,1.5277]
[1737777903664,0.5122,3318.3,3318.1,2.00996]
[1737777903952,0.5122,3318.3,3318.2,0.48226]
[1737777904759,2.30535144,3318.6,3318.2,0.48226]
[1737777904960,2.80415144,3318.6,3318.2,0.48226]
[1737777905167,3.97771914,3318.5,3318.2,0.48226]
[1737777905664,3.97771914,3318.5,3318.1,1.5277]
[1737777905962,3.97771914,3318.5,3318.4,3.2078]
[1737777907961,2.80415144,3318.6,3318.4,3.2078]
[1737777908159,2.30535144,3318.9,3318.5,0.48221]
[1737777908360,2.82625144,3318.9,3318.6,1.0083]
[1737777908562,2.82625144,3318.9,3318.6,1.5026]
[1737777909963,3.30840144,3318.9,3318.6,1.5026]
[1737777913172,2.82625144,3318.9,3318.6,1.5026]
[1737777913372,0.48218,3318.8,3318.6,0.4943]
[1737777914872,0.48218,3318.8,3318.4,3.2078]
[1737777915173,0.48218,3318.8,3318.4,3.7247]
[1737777915373,0.48218,3318.8,3318.4,4.6976]
[1737777916275,0.48218,3318.8,3318.4,1.4898]
[1737777916869,4.39569172,3318.7,3318.4,1.4898]
[1737777917065,0.517,3318.6,3318.4,1.4898]
[1737777917679,3.85426109,3318.8,3318.5,0.4822]
[1737777918282,2.82625144,3318.9,3318.5,0.4822]
[1737777918482,2.82625144,3318.9,3318.4,1.4898]
[1737777918686,2.82625144,3318.9,3318.5,0.4822]
[1737777919589,3.83569841,3318.8,3318.5,0.4822]
[1737777920181,2.30535144,3318.6,3318.2,3.2078]
[1737777920388,2.30535144,3318.3,3318.2,3.2078]
[1737777920586,2.78759144,3318.3,3318.2,3.2078]
[1737777920791,3.27889144,3318.3,3318.2,3.2078]
[1737777920987,3.27889144,3318.3,3317.5,0.5171]
[1737777920988,0.4823,3317.9,3317.5,0.5018]
[1737777921185,1.48562,3317.8,3317.5,0.5018]
[1737777921585,5.42339525,3317.8,3317.5,0.5018]
[1737777921787,4.94107525,3317.8,3317.5,0.98416]
[1737777922093,3.93777525,3317.8,3317.6,0.48234]
[1737777922492,2.79665144,3317.9,3317.6,0.48234]
[1737777922692,2.79665144,3317.9,3317.7,0.4994]
[1737777924393,3.30021144,3318.2,3317.8,3.69011]
[1737777924589,3.30021144,3318.2,3317.9,0.5006]
[1737777924785,2.78761144,3318.2,3317.9,0.5006]
[1737777924990,3.85496751,3318.1,3317.9,0.5006]
[1737777925391,3.85496751,3318.1,3317.9,0.98289]
[1737777926287,3.85496751,3318.1,3317.9,0.5006]
[1737777929295,4.33723751,3318.1,3317.9,0.5006]
[1737777930293,0.48229,3318.0,3317.8,3.2078]
[1737777930494,0.98419,3318.0,3317.8,3.2078]
[1737777933700,0.5019,3318.0,3317.8,3.2078]
[1737777934892,0.5019,3318.0,3317.8,3.69011]
[1737777935099,0.523,3318.1,3317.8,3.2078]
[1737777935299,0.523,3318.1,3317.9,0.9866]
[1737777935601,2.30535144,3318.2,3317.9,0.5043]
[1737777935801,2.30535144,3318.2,3318.0,0.48228]
[1737777936098,0.5035,3318.3,3318.2,0.48226]
[1737777936306,2.30535144,3318.5,3318.3,0.48223]
[1737777936801,2.30535144,3318.5,3318.2,0.48225]
[1737777940004,2.30535144,3318.5,3318.1,0.525]
[1737777940206,2.30535144,3318.5,3318.2,3.69006]
[1737777941902,2.30535144,3318.5,3318.2,3.2078]
[1737777943908,2.78757144,3318.5,3318.2,3.2078]
[1737777946510,2.30535144,3318.5,3318.2,3.69005]
[1737777946806,2.30535144,3318.5,3318.2,3.2078]
[1737777947809,2.30535144,3318.5,3318.1,1.00726]
[1737777948006,2.30535144,3318.5,3318.2,3.2078]
[1737777949002,0.48224,3318.3,3318.2,3.2078]
[1737777949910,2.30535144,3318.5,3318.2,3.2078]
[1737777950108,2.78757144,3318.5,3318.2,3.2078]
[1737777953314,0.48223,3318.4,3318.2,3.2078]
[1737777954513,0.48223,3318.4,3318.1,0.525]
[1737777954810,2.30535144,3318.5,3318.2,3.2078]
[1737777955013,0.48223,3318.4,3318.2,3.2078]
[1737777956413,2.78757144,3318.5,3318.2,3.2078]
[1737777956615,2.30535144,3318.5,3318.2,3.2078]
[1737777957214,0.48223,3318.4,3318.2,3.2078]
[1737777958514,2.78757144,3318.5,3318.2,3.2078]
[1737777959815,1.09063381,3318.8,3318.5,0.4822]
[1737777960011,1.09063381,3318.8,3318.6,4.6807]
[1737777961812,2.78573535,3318.9,3318.6,4.6807]
[1737777962018,2.30357535,3318.9,3318.6,4.6807]
[1737777962209,0.48218,3318.7,3318.6,4.6807]
[1737777962519,0.48218,3318.7,3318.6,3.2078]
[1737777962820,1.48168,3318.7,3318.6,3.2078]
[1737777963518,4.97851839,3318.7,3318.2,3.7078]
[1737777963825,0.48223,3318.4,3318.2,3.7078]
[1737777966615,2.30357535,3318.5,3318.2,3.7078]
[1737777967023,2.78578535,3318.5,3318.3,1.0449]
[1737777968320,2.78578535,3318.5,3318.2,3.7078]
[1737777969024,4.41885346,3318.4,3318.2,3.7078]
[1737777971126,3.93662346,3318.4,3318.2,3.7078]
[1737777971327,3.93662346,3318.4,3318.2,4.19004]
[1737777971520,3.93662346,3318.4,3318.3,0.9651]
[1737777971824,2.78574535,3318.8,3318.4,0.48222]
[1737777973526,2.30357535,3318.8,3318.3,0.9651]
[1737777973727,2.30357535,3318.8,3318.4,0.48223]
[1737777973927,2.30357535,3318.8,3318.3,0.9651]
[1737777973928,2.78574535,3318.8,3318.3,0.9651]
[1737777974225,2.30357535,3318.8,3318.3,0.9651]
[1737777974425,2.78574535,3318.8,3318.3,1.44734]
[1737777974624,2.30357535,3318.8,3318.3,1.44734]
[1737777974827,2.30357535,3318.8,3318.6,3.2078]
[1737777975328,2.30357535,3318.8,3318.7,0.5105]
[1737777976729,2.78574535,3318.8,3318.7,0.5105]
[1737777978628,0.48222,3318.5,3318.3,0.9651]
[1737777978932,2.78579535,3318.5,3318.3,0.9651]
[1737777979235,0.96033,3318.4,3318.2,3.2078]
[1737777981231,0.4781,3318.4,3318.2,3.2078]
[1737777981728,4.3795309,3318.3,3318.2,3.2078]
[1737777982125,3.8972909,3318.3,3318.2,3.2078]
[1737777982629,4.3795309,3318.3,3318.2,3.2078]
[1737777983328,3.8972909,3318.3,3318.2,3.2078]
[1737777986434,2.78578535,3318.5,3318.2,3.69005]
[1737777987426,2.30357535,3318.5,3318.2,3.69005]
[1737777987827,2.30357535,3318.8,3318.2,3.2078]
[1737777988033,2.30357535,3318.8,3318.5,0.4822]
[1737777988333,2.30357535,3318.8,3318.6,0.5028]
[1737777988632,2.30357535,3318.8,3318.6,1.517]
[1737777992240,2.78575535,3318.8,3318.6,1.517]
[1737777992430,2.30357535,3318.8,3318.6,1.517]
[1737777993839,2.78574535,3318.8,3318.6,1.517]
[1737777994839,0.48221,3318.5,3318.2,3.2078]
[1737777995030,0.48223,3318.4,3318.3,0.48]
[1737777995335,0.4834,3318.4,3318.3,0.48]
[1737777996938,0.96563,3318.4,3318.3,0.48]
[1737778002638,4.49062196,3318.4,3318.2,3.2078]
[1737778002839,1.57282977,3318.3,3318.2,3.2078]
[1737778003140,5.5461409,3318.3,3318.2,3.2078]
[1737778007640,6.76019583,3318.3,3318.2,3.2078]
[1737778008047,0.48231,3317.9,3317.8,3.2078]
[1737778008730,1.47161,3317.9,3317.8,3.2078]
[1737778009044,0.9893,3317.9,3317.8,3.2078]
[1737778009641,4.85930921,3317.9,3317.8,3.2078]
[1737778010031,5.34160921,3317.9,3317.6,1.4775]
[1737778010438,5.34160921,3317.9,3317.6,0.4883]
[1737778011340,0.48231,3317.8,3317.4,3.2078]
[1737778011549,0.96893,3317.7,3317.4,3.2078]
[1737778011942,4.95929826,3317.7,3317.4,3.2078]
[1737778012442,4.47696826,3317.7,3317.4,3.2078]
[1737778012637,3.99036826,3317.7,3317.5,0.48235]
[1737778012842,3.99036826,3317.7,3317.6,1.0079]
[1737778013041,3.99036826,3317.7,3317.6,1.5341]
[1737778013546,3.85225829,3317.8,3317.6,1.5341]
[1737778013842,0.9893,3317.9,3317.6,1.5341]
[1737778014047,0.4897,3317.9,3317.8,3.2078]
[1737778014438,4.34044572,3317.9,3317.8,3.2078]
[1737778016150,3.85074572,3317.9,3317.8,3.2078]
[1737778019149,0.4983,3318.2,3317.8,3.6901]
[1737778019747,0.4983,3318.2,3317.8,3.2078]
[1737778019946,0.4983,3318.2,3317.9,0.4823]
[1737778020249,0.4983,3318.2,3317.8,3.2078]
[1737778020451,0.4983,3318.2,3317.8,3.69011]
[1737778020854,0.4983,3318.2,3318.0,0.48228]
[1737778021058,0.4983,3318.2,3318.1,0.972]
[1737778021356,0.963,3318.4,3318.1,1.4869]
[1737778021548,1.448,3318.4,3318.1,1.4869]
[1737778021749,1.93023,3318.4,3318.1,1.4869]
[1737778022462,0.48224,3318.3,3318.1,1.4869]
[1737778022754,1.93023,3318.4,3318.1,1.4869]
[1737778023956,0.48224,3318.3,3318.1,1.4869]
[1737778024254,2.7868847,3318.3,3318.1,1.4869]
[1737778026558,2.3046447,3318.3,3318.1,1.4869]
[1737778026757,2.7868547,3318.6,3318.1,1.4869]
[1737778027057,2.7868547,3318.6,3318.2,3.2078]
[1737778027755,2.3046447,3318.6,3318.2,3.2078]
[1737778027952,0.48221,3318.5,3318.2,3.2078]
[1737778028351,0.4766,3318.7,3318.2,3.2078]
[1737778028658,0.95879,3318.7,3318.3,0.48223]
[1737778029353,0.95879,3318.7,3318.2,3.2078]
[1737778029555,0.95879,3318.7,3318.2,3.69005]
[1737778031752,1.090606,3318.4,3318.2,3.69005]
[1737778032457,1.090606,3318.4,3318.2,3.2078]
[1737778032658,1.090606,3318.4,3318.3,0.48224]
[1737778032957,1.090606,3318.4,3318.2,3.2078]
[1737778033157,1.090606,3318.4,3318.2,3.69005]
[1737778033957,1.090606,3318.4,3318.2,3.2078]
[1737778034663,1.090606,3318.4,3318.2,3.69005]
[1737778036761,1.090606,3318.4,3318.3,0.48224]
[1737778036963,1.090606,3318.4,3318.2,3.69005]
[1737778046462,1.090606,3318.4,3318.2,3.2078]
[1737778046463,4.43059031,3318.3,3318.2,3.2078]
[1737778046662,4.91559031,3318.3,3318.2,3.2078]
[1737778046960,0.48231,3317.9,3317.8,3.2078]
[1737778047155,0.48233,3317.7,3317.5,0.5114]
[1737778047958,1.090606,3317.6,3317.5,0.5114]
[1737778048168,5.44909442,3317.6,3317.4,7.8808309]
[1737778048567,5.44909442,3317.6,3317.4,3.2078]
[1737778048768,1.572946,3317.6,3317.4,3.2078]
[1737778052280,1.090606,3317.6,3317.4,3.2078]
[1737778055683,0.96193,3317.7,3317.4,3.2078]
[1737778056075,4.00738414,3317.6,3317.4,3.2078]
[1737778056582,4.48973414,3317.6,3317.4,3.2078]
[1737778057284,4.00738414,3317.6,3317.4,3.2078]
[1737778059781,4.48973414,3317.6,3317.4,3.2078]
[1737778059982,4.99053414,3317.6,3317.4,3.2078]
[1737778060183,4.50818414,3317.6,3317.4,3.2078]
[1737778060393,2.78749566,3317.5,3317.4,3.2078]
[1737778060798,6.71884831,3317.5,3317.4,3.2078]
[1737778068493,0.48237,3317.4,3317.3,3.2078]
[1737778068690,0.98967,3317.4,3317.3,3.2078]
[1737778069297,4.92818314,3317.4,3317.3,3.2078]
[1737778074501,3.93851314,3317.4,3317.3,3.2078]
[1737778074701,2.30513566,3317.8,3317.4,0.48237]
[1737778074896,2.78745566,3317.8,3317.4,1.5025]
[1737778075200,3.85869138,3317.7,3317.4,1.5025]
[1737778075802,4.34102138,3317.7,3317.4,1.5025]
[1737778076598,0.48236,3317.5,3317.4,1.5025]
[1737778076804,2.78749566,3317.5,3317.4,1.5025]
[1737778077807,6.72512919,3317.5,3317.4,1.5025]
[1737778078096,0.48237,3317.4,3317.3,3.2078]
[1737778078294,0.99657,3317.4,3317.3,3.2078]
[1737778079003,4.92759473,3317.4,3317.3,3.2078]
[1737778079405,3.93102473,3317.4,3317.3,3.2078]
[1737778079606,4.41339473,3317.4,3317.3,3.2078]
[1737778080304,2.78744566,3317.8,3317.4,0.48236]
[1737778080503,2.78744566,3317.8,3317.5,1.0011]
[1737778080703,2.30513566,3317.8,3317.5,1.0011]
[1737778080906,0.48234,3317.7,3317.5,1.0011]
[1737778081302,6.76471241,3317.8,3317.5,1.0011]
[1737778081804,3.97725675,3317.6,3317.5,1.0011]
[1737778083503,4.45959675,3317.6,3317.4,0.5232]
[1737778083708,3.31229566,3317.5,3317.4,0.5232]
[1737778084302,7.24615361,3317.5,3317.4,0.5232]
[1737778085513,6.76379361,3317.5,3317.3,3.2078]
[1737778085707,0.48237,3317.4,3317.3,3.2078]
[1737778086613,4.33902312,3317.4,3317.3,3.2078]
[1737778091718,5.43043682,3317.4,3317.3,3.2078]
[1737778093811,4.94806682,3317.4,3316.9,0.97184]
[1737778094012,0.48239,3317.3,3317.1,3.2078]
[1737778094316,3.94385575,3317.2,3317.1,3.2078]
[1737778096516,5.03526945,3317.2,3317.1,3.2078]
[1737778097618,5.51766945,3317.2,3317.1,3.2078]
[1737778101014,5.03526945,3317.2,3317.1,3.2078]
[1737778101510,5.51766945,3317.2,3317.1,3.2078]
[1737778105221,5.03526945,3317.2,3317.1,3.2078]
[1737778105720,5.51766945,3317.2,3317.1,3.2078]
[1737778106417,5.51766945,3317.2,3316.9,0.4894]
[1737778106418,0.48243,3317.0,3316.9,0.4894]
[1737778106619,1.5738437,3317.0,3316.9,0.4894]
[1737778106807,5.49198072,3317.0,3316.9,0.4894]
[1737778110921,5.00955072,3317.0,3316.9,0.4894]
[1737778112623,5.49198072,3317.0,3316.9,0.4894]
[1737778118928,6.10096442,3317.0,3316.6,4.2316]
[1737778119233,1.5738837,3316.7,3316.6,4.2316]
[1737778119833,5.05627722,3316.7,3316.6,4.2316]
[1737778120035,5.53874722,3316.7,3316.6,4.2316]
[1737778120222,6.01374722,3316.7,3316.6,4.2316]
[1737778120832,6.01374722,3316.7,3316.1,4.2281]
[1737778120833,0.48254,3316.3,3316.1,4.2281]
[1737778121033,1.0914137,3316.2,3316.1,4.7156]
[1737778121239,2.0489637,3316.2,3316.0,4.6730309]
[1737778121738,0.48256,3316.1,3316.0,4.6730309]
[1737778122038,0.48256,3316.1,3315.9,0.4875]
[1737778122241,1.5739837,3316.0,3315.9,0.4875]
[1737778122540,0.48259,3315.9,3315.8,1.0203]
[1737778123242,4.34896771,3315.9,3315.8,0.4973]
[1737778123442,3.86637771,3315.9,3315.8,0.4973]
[1737778123636,4.34897771,3315.9,3315.7,8.3615309]
[1737778123833,1.0914137,3315.8,3315.7,8.3615309]
[1737778124743,5.53814242,3315.8,3315.7,8.3615309]
[1737778125240,5.05554242,3315.8,3315.7,8.3615309]
[1737778125644,5.53814242,3315.8,3315.7,5.1537309]
[1737778125828,5.53814242,3315.8,3315.7,4.6730309]
[1737778126635,5.05554242,3315.8,3315.7,4.6730309]
[1737778126829,5.05554242,3315.8,3315.7,7.8808309]
[1737778127037,2.0524137,3316.0,3315.7,7.8808309]
[1737778127232,1.0914137,3315.8,3315.7,7.8808309]
[1737778128645,1.0914137,3315.8,3315.7,8.3634509]
[1737778129243,1.0914137,3315.8,3315.7,7.8808309]
[1737778129437,1.0914137,3315.8,3315.7,3.2078]
[1737778131847,1.0914137,3315.8,3315.7,3.69042]
[1737778132749,2.0524137,3316.0,3315.7,3.2078]
[1737778132945,2.0524137,3316.0,3315.7,3.69041]
[1737778134239,1.0914137,3315.8,3315.7,3.2078]
[1737778134748,1.5740137,3315.8,3315.7,3.2078]
[1737778134947,1.6084137,3315.8,3315.7,3.2078]
[1737778136043,1.0914137,3315.8,3315.7,3.2078]
[1737778136345,1.0914137,3315.8,3315.7,3.69042]
[1737778136850,2.0524137,3316.0,3315.7,3.69042]
[1737778137748,1.0914137,3315.8,3315.7,3.2078]
[1737778140650,1.0914137,3316.0,3315.7,3.2078]
[1737778140950,1.0914137,3316.0,3315.8,0.4826]
[1737778141150,1.0914137,3316.0,3315.9,0.5036]
[1737778141350,1.0914137,3316.0,3315.9,1.0092]
[1737778141748,5.01391998,3316.0,3315.9,1.0092]
[1737778144345,5.49648998,3316.0,3315.9,1.0092]
[1737778144554,5.01391998,3316.0,3315.9,1.0092]
[1737778145555,5.49648998,3316.0,3315.9,0.5056]
[1737778149354,6.10533368,3316.0,3315.3,3.2078]
[1737778149652,1.0914137,3315.4,3315.3,3.2078]
[1737778150251,1.5740737,3315.4,3315.3,3.2078]
[1737778150553,1.0914137,3315.4,3315.3,3.2078]
[1737778151359,1.5740737,3315.4,3315.3,3.2078]
[1737778151559,2.0871737,3315.4,3315.3,3.2078]
[1737778152052,5.99048863,3315.4,3315.3,3.2078]
[1737778153750,5.50782863,3315.4,3314.9,3.2078]
[1737778153955,0.48272,3315.0,3314.9,3.2078]
[1737778154161,1.0914137,3315.0,3314.9,3.2078]
[1737778154560,1.5783137,3315.0,3314.9,3.2078]
[1737778155358,2.0610337,3315.0,3314.9,3.2078]
[1737778155759,5.92848359,3315.0,3314.9,3.2078]
[1737778156564,4.95886359,3315.0,3314.9,3.2078]
[1737778156759,3.86744989,3315.0,3314.9,3.69053]
[1737778157155,1.0914137,3315.2,3314.9,3.2078]
[1737778157356,1.0914137,3315.2,3315.0,1.00252]
[1737778157563,1.0914137,3315.2,3315.1,0.5106]
[1737778164867,1.0914137,3315.2,3315.1,0.99331]
[1737778165069,1.0914137,3315.2,3315.1,0.5106]
[1737778165868,1.0914137,3315.4,3315.1,0.99331]
[1737778166065,1.0914137,3315.4,3315.3,3.2078]
[1737778166773,1.0914137,3315.4,3315.3,3.69048]
[1737778168271,1.5740537,3315.6,3315.3,3.2078]
[1737778168569,1.5740537,3315.6,3315.3,3.69047]
[1737778168769,3.89644949,3315.5,3315.3,3.69047]
[1737778169276,1.0914137,3315.4,3315.3,3.69047]
[1737778172175,1.0914137,3315.6,3315.3,3.2078]
[1737778172379,1.0914137,3315.6,3315.5,0.48264]
[1737778173076,1.0914137,3315.6,3315.4,0.48266]
[1737778173276,1.0914137,3315.6,3315.3,3.2078]
[1737778173277,1.4651,3315.9,3315.5,0.5153]
[1737778173472,0.48263,3315.6,3315.3,3.69047]
[1737778173867,0.4931,3315.5,3315.3,3.69047]
[1737778174378,0.4931,3315.5,3315.4,0.48266]
[1737778174580,1.5845137,3315.5,3315.3,3.69047]
[1737778175878,1.5845137,3315.5,3315.3,3.2078]
[1737778176177,0.96976,3315.4,3315.3,3.2078]
[1737778177883,0.4871,3315.4,3315.1,0.5106]
[1737778178087,1.0914137,3315.2,3315.1,0.5106]
[1737778178780,1.5741037,3315.2,3315.1,0.5106]
[1737778182076,1.5741037,3315.2,3315.0,0.5065]
[1737778182275,0.4892,3315.1,3315.0,0.5065]
[1737778183380,0.4892,3315.1,3315.0,0.98922]
[1737778183584,0.4892,3315.1,3315.0,0.5065]
[1737778185078,0.97191,3315.1,3315.0,0.5065]
[1737778188187,0.4892,3315.1,3315.0,0.5065]
[1737778188883,0.4892,3315.1,3314.9,3.2078]
[1737778189185,1.0914137,3315.0,3314.9,3.2078]
[1737778189484,1.5741337,3315.0,3314.9,3.2078]
[1737778189685,5.9985389,3315.0,3314.9,3.2078]
[1737778191189,5.5158189,3315.0,3314.9,3.2078]
[1737778191982,5.9985389,3315.0,3314.9,3.2078]
[1737778192483,5.5158189,3315.0,3314.9,3.2078]
[1737778195776,5.9985389,3315.0,3314.9,3.2078]
[1737778198991,5.9985389,3315.0,3314.6,0.97357]
[1737778199184,5.9985389,3315.0,3314.6,4.18137]
[1737778199185,1.0914137,3314.8,3314.6,4.18137]
[1737778200191,1.0914137,3314.8,3314.6,3.6986]
[1737778200387,1.0914137,3315.4,3314.6,4.7900137]
[1737778200593,1.0914137,3315.4,3315.2,3.2078]
[1737778200891,1.5740737,3315.4,3315.3,1.478]
[1737778201098,0.48269,3315.2,3314.9,1.478]
[1737778201394,1.0914137,3315.0,3314.9,1.478]
[1737778201693,1.0914137,3315.0,3314.9,1.96073]
[1737778204694,1.0914137,3315.0,3314.9,1.478]
[1737778205083,1.5741337,3315.0,3314.9,1.478]
[1737778206789,5.41234634,3315.0,3314.9,1.478]
[1737778207595,5.41234634,3315.0,3314.8,3.2078]
[1737778207596,4.92962634,3315.0,3314.8,3.2078]
[1737778207796,0.96343,3314.9,3314.8,3.2078]
[1737778208297,0.4807,3314.9,3314.8,3.2078]
[1737778216800,1.0914137,3315.0,3314.8,3.2078]
[1737778217406,3.84190057,3314.9,3314.8,3.2078]
[1737778220307,3.84044829,3314.9,3314.8,3.2078]
[1737778221203,4.80044829,3314.9,3314.2,3.2078]
[1737778221507,0.48288,3313.9,3313.8,0.9700353]
[1737778221697,0.48291,3313.7,3313.6,7.3903641]
[1737778221896,1.0914137,3313.7,3313.6,7.3903641]
[1737778222502,5.55469998,3313.7,3313.6,7.3903641]
[1737778222702,5.07178998,3313.7,3313.6,7.3903641]
[1737778223208,5.55469998,3313.7,3313.6,7.3903641]
[1737778224709,5.07178998,3313.7,3313.6,7.3903641]
[1737778224909,5.55469998,3313.7,3313.6,7.3903641]
[1737778225515,5.55469998,3313.7,3313.3,0.4978]
[1737778225710,1.0914137,3313.4,3313.3,0.4978]
[1737778228512,1.5743637,3313.4,3313.3,0.4978]
[1737778229012,1.0914137,3313.4,3313.3,0.4978]
[1737778229212,1.5743637,3313.4,3313.3,0.4978]
[1737778231113,5.56498889,3313.4,3313.3,0.4978]
[1737778232709,5.08203889,3313.4,3313.3,0.4978]
[1737778236517,5.56498889,3313.4,3313.3,0.4978]
[1737778237128,5.08203889,3313.4,3313.3,0.4978]
[1737778251939,1.0914137,3313.6,3313.3,3.7056]
[1737778252240,1.0914137,3313.8,3313.7,0.48291]
[1737778253238,1.0914137,3313.8,3313.4,1.0914137]
[1737778253543,1.0914137,3313.8,3313.6,0.48292]
[1737778253745,1.0914137,3313.8,3313.7,0.4974]
[1737778253939,5.05102412,3313.8,3313.7,1.009]
[1737778254241,5.53391412,3313.8,3313.7,1.009]
[1737778254643,5.53391412,3313.8,3313.7,0.4974]
[1737778255833,6.49491412,3313.8,3313.7,0.4974]
[1737778258647,6.01202412,3313.8,3313.4,0.5116]
[1737778258946,1.0914137,3313.5,3313.4,1.0074]
[1737778260848,1.0914137,3313.5,3313.4,1.49035]
[1737778263652,3.2078,3313.6,3313.4,1.49035]
[1737778264151,0.4829,3313.8,3313.5,0.48293]
[1737778264351,2.79343132,3313.9,3313.6,0.48292]
[1737778264544,2.31054132,3313.9,3313.6,0.48292]
[1737778265255,2.79342132,3313.9,3313.6,0.48292]
[1737778265552,2.31054132,3313.9,3313.6,0.48292]
[1737778267052,2.31054132,3313.9,3313.4,1.0074]
[1737778267246,2.31054132,3313.9,3313.8,0.48289]
[1737778268755,2.31054132,3313.9,3313.7,0.4829]
[1737778268944,2.31506483,3314.2,3313.8,0.5213]
[1737778269144,2.31506483,3314.2,3313.9,0.9774]
[1737778269344,0.48287,3314.0,3313.9,0.9774]
[1737778269755,4.36795148,3314.0,3313.9,0.9774]